Workbook

Sheet Stand Bewertung Spieckermann
A1: Kapitaldienst für die ortsfeste Infrastruktur des ÖV im Mitfall | D1: =Q106 -> 2679.97534 | E1: Kosten in T€/Jahr | O1: Spiekermann | Q1: Alternative Betrachtung
A2: Summe der monetär bewerteten Einzelnutzen-Salden | D2: =Q104 -> 4831.555242 | E2: Nutzen in T€/Jahr | J2: Anlagenteil (Preisstand 2006) | M2: Abschreibung | O2: Abgezinst | P2: Preisstand 2016 | Q2: Abgezinst | R2: Preisstand 2016
A3: Nutzen-Kosten-Verhältnis (Nutzen-Kosten-Indikator) | D3: =D2/D1 -> 1.802835709 | F3: Annahme in | J3: Stationen | M3: 50 | N3: T€ | O3: 11450 | P3: =O3/0.8 -> 14312.5 | Q3: =R3*0.8 -> 11450 | R3: =P3 -> 14312.5
F4: Standardisierter | J4: Strecke | M4: 30 | N4: T€ | O4: 8310 | P4: =O4/0.8 -> 10387.5 | Q4: =R4*0.8 -> 8310 | R4: =P4 -> 10387.5
A5: Investitionskosten | F5: Bewertung | J5: Zusätzliche Handlungsoptionen | M5: 30 | N5: T€ | Q5: 0 | R5: =B6 -> 0
A6: Zusätzliche Handlungsoptionen gem. WSW | B6: =D6-3560 -> 0 | C6: T€ | D6: 3560 | E6: von -3,56 Mio. € bis +6,8 Mio. € | F6: 0 T€ | G6: Die WSW nennt zusätzliche Handlungsoptionen mit Kosten von 6,8 Millionen €; die Stadt wünscht sich eine Parkpalette; die WSW bevorzugt die Variante ohne Parkhaus und ohne hochwertige Fassaden | J6: Fahrbetriebsmittel | M6: 30 | N6: T€ | O6: 7570 | P6: 9462.5 | Q6: 7570 | R6: =P6 -> 9462.5
A7: durchschnittliche Abschreibungsdauer | B7: =D7/10 -> 46.6 | C7: Jahre | D7: 466 | E7: von 30 bis 46,6 Jahre | F7: 46,6 Jahre | G7: Die Abschreibung wird von Spiekermann überwiegend zu 50 J. angenommen; die Generalüberholung der meisten Seilbahn-Betriebsmittel wird nach 30 Jahren empfohlen | J7: Elektrotechnische Ausstattung | M7: 30 | N7: T€ | O7: 1600 | P7: 2000 | Q7: 1600 | R7: 2000
A8: 20% Planungskosten berücksichtigen | B8: FALSE | F8: FALSE | G8: Planungskosten werden nur zu 10% in der Standardisierten Bewertung berücksichtigt. Was wäre, wenn die von den Gutachtern genannten Planungskosten einfließen? | J8: Seilbahntechnik Garagierung | M8: 30 | N8: T€ | O8: 800 | P8: 1000 | Q8: 800 | R8: 1000
A9: Betriebskosten | J9: Montage | M9: 30 | N9: T€ | O9: 4000 | P9: 5000 | Q9: 4000 | R9: 5000
A10: Personalbesetzung der vier Einstiegsplattformen | B10: 3 | C10: Pers. | E10: von 3 bis 6 Personen | F10: 3 Personen | G10: Spiekermann nennt 3 Personen für 4 Einstiegsstellen; zusätzlich wurde ein Springer kalkuliert. | J10: Fundamente der Seilbahn | M10: 50 | N10: T€ | O10: 3190 | P10: 3987.5 | Q10: 3190 | R10: 3987.5
A11: Länge der energetisch berücksichtigten Seilbahn | B11: 890 | C11: m | E11: von 890m bis 2750m | F11: 890 m | G11: Spiekermann übernimmt die Energiebetrachtung von Dipl.-Ing. Schweiger, die der der Koblenzer Seilbahn bei höherer Geschwindigkeit entspricht. | J11: Seilbahngebäude | M11: 50 | N11: T€ | O11: 4880 | P11: 6100 | Q11: 4880 | R11: 6100
A12: Berücksichtigung von Versicherungskosten | B12: 0 | C12: T€ | E12: von 0 bis 500.000 €/Jahr | F12: 0 T€ | G12: Versicherungskosten werden nicht aufgeführt; Seilbahn Washington DC nennt 500.000 USD für die Versicherung. | K12: Teilsumme I (angepasste Vorstudie) | N12: T€ | O12: =SUM(O3:O11) -> 41800 | P12: =SUM(P3:P11) -> 52250 | Q12: =SUM(Q3:Q11) -> 41800 | R12: =SUM(R3:R11) -> 52250
A13: Wartungskosten für 22 Aufzüge und Rolltreppen | B13: 0 | C13: T€ | E13: von 0 bis 410.000 €/Jahr | F13: 0 T€ | G13: Gemäß Stadt Braunschweig werden 17.000 bis 20.000 €/Jahr an Wartungskosten pro Aufzug und Rolltreppe kaluliert | K13: 10% Unvorhergesehenes, Risiken | M13: 50 | N13: T€ | O13: =O12*10% -> 4180 | P13: =P12*10% -> 5225 | Q13: =Q12*10% -> 4180 | R13: =R12*10% -> 5225
A14: MIV-Verlagerung | G14: 157.000 km/Jahr würde die Wuppertaler Seilbahn bewegt werden; 30.000 km/Jahr fährt näherungsweise die Koblenzer Seilbahn | J14: Zugangs- und Infrastruktur | M14: 50 | N14: T€ | O14: 1600 | P14: 2000 | Q14: =R14*0.8 -> 1600 | R14: 2000
A15: Anteil Autofahrten Cronenberger Straße verlagert | B15: =D15/10000 -> 0.1364 | D15: 1364 | E15: von 14.000 Fahrten/Tag | F15: 0.1364 | G15: Spiekermann nennt 1910 eingesparte Autofahrten; dies entspricht 13,64% der Querschnittsbelastung der Cronenberger Str. oberhalb des Klever Platzes | J15: Einrichtung / Ausstattung | M15: 50 | N15: T€ | O15: 400 | P15: 500 | Q15: =R15*0.8 -> 400 | R15: 500
A16: Reiseweite der Umsteiger vom Auto auf Seilbahn | B16: =D16/100 -> 8.66 | C16: km | D16: 866 | E16: von 5,7km (MID2008) bis 8,66km | F16: 8,66 km | G16: Gemäß Mobilität in Deutschland 2008 liegt die durchschn. Reiseweite in Städten von 100.000 bis 500.000 Einw. bei 5,7km; Spiekermann nimmt 8,66km für Seilbahnumsteiger an. | J16: Elektrische Versorgung | M16: 30 | N16: T€ | O16: 400 | P16: 500 | Q16: =R16*0.8 -> 400 | R16: 500
A17: Bus auf Auto-Umsteiger in Südstadt wg. Buskürzungen | B17: =D17/100 -> 0 | D17: 0 | E17: von 0 bis 33% steigen auf Auto um | F17: 0 | G17: In der Südstadt werden 33% bis 67% des Busverkehrs gekürzt. Dies könnte zu Verlagerungen der ÖPNV-Nutzung führen; was in der Standardisierten Bewertung nicht berücksichtigt ist. | J17: Bauzeitliche Infrastruktur | M17: 50 | N17: T€ | O17: 480 | P17: 600 | Q17: =R17*0.8 -> 480 | R17: 600
A18: Fahrzeiten | J18: Grundstücke / Dienstbarkeiten | M18: 50 | N18: T€ | O18: 1280 | P18: 1600 | Q18: =R18*0.8 -> 1280 | R18: 1600
A19: Jeder Seilbahn-Fahrgast spart durchschnittl. Reisezeit | B19: =(D19-40)/10 -> 4 | C19: Min. | D19: 80 | E19: von -4 Minuten bis 4 Minuten | F19: +4 Minuten | G19: Spiekermann nennt 1.231 eingesparte Stunden am Werktag; jeder Fahrgast spart wahrscheinlich 4 Minuten; wo und wie die Zeiten eingespart werden, ist nicht ersichtlich | K19: Teilsumme II (Weiterentwicklung MBS) | N19: T€ | O19: =SUM(O14:O18) -> 4160 | P19: =SUM(P14:P18) -> 5200 | Q19: =SUM(Q14:Q18) -> 4160 | R19: =SUM(R14:R18) -> 5200
A20: Studierende fahren an der Anzahl von Tagen zur Uni | B20: 250 | C20: Tage | D20: 100 | E20: von 140 Tage bis 250 Tage/Jahr | F20: 250 Tage | G20: Die Hochrechnung der Werktage aufs Jahr wird mit 250/300 Tage gemacht; was ist, wenn Studenten nicht jeden Werktag zur Uni fahren? | K20: 50% Unvorhergesehenes, Risiken | M20: 50 | N20: T€ | O20: =O19*50% -> 2080 | P20: =P19*50% -> 2600 | Q20: =Q19*50% -> 2080 | R20: =R19*50% -> 2600
G21: Spiekermann nennt, dass zwischen Hbf und Uni etwa 3/4 und zwischen Hbf-Schulzentrum 1/4 der Querschnittsbelastung erwartet werden kann. Die Studierenden werden hier nur 2/3 der Fahrgäste an Werktagen angenommen. | J21: Fassade und Pflasterung | M21: 30 | N21: T€ | O21: 890 | P21: 1112.5 | Q21: =R21*0.8 -> 890 | R21: 1112.5
A22: Haftungsausschluss | J22: Parkpalette | M22: 50 | N22: T€ | O22: 1300 | P22: 1625 | Q22: =R22*0.8 -> 1300 | R22: 1625
A23: Diese Tabelle erhebt weder Anspruch auf Vollständigkeit noch auf Fehlerfreiheit. Diese kann so verwendet werden, wie sie ist. | K23: Teilsumme III (Talstation) | N23: T€ | O23: =SUM(O21:O22) -> 2190 | P23: =SUM(P21:P22) -> 2737.5 | Q23: =SUM(Q21:Q22) -> 2190 | R23: =SUM(R21:R22) -> 2737.5
A24: Der Zweck ist, einen ersten Eindruck von den Annahmen aus der Standardisierten Bewertung zu gewinnen und deren Auswirkungen zu sehen. | K24: 30% Unvorhergesehenes, Risiken | M24: 50 | N24: T€ | O24: =O23*30% -> 657 | P24: =P23*30% -> 821.25 | Q24: =Q23*30% -> 657 | R24: =R23*30% -> 821.25
J25: Gesamtsumme ohne Planungskosten | N25: T€ | O25: =O12+O13+O19+O20+O23+O24 -> 55067 | P25: =P12+P13+P19+P20+P23+P24 -> 68833.75 | Q25: =Q12+Q13+Q19+Q20+Q23+Q24 -> 55067 | R25: =R12+R13+R19+R20+R23+R24 -> 68833.75
J26: Zu unterhaltende Gebäude | N26: 0.02 | O26: =O3+O4+O8+O9+O10+O11+O14*0.86+O5 -> 34006 | Q26: =Q3+Q4+Q8+Q9+Q10+Q11+Q14*0.86+Q5 -> 34006
J27: Unterhaltungskosten | N27: T€/Jahr | O27: =O26*$N$26 -> 680.12 | P27: 680 | Q27: =Q26*$N$26 -> 680.12
J29: (Preisstand 2006) Dimensionierung Mitfall | O29: Spiekermann | Q29: mit WSW Handlungsoptionen
J30: Infrastrukturkosten | O30: =O25 -> 55067 | Q30: =Q25 -> 55067
J31: Weitere Handlungsoptionen | N31: T€ | Q31: =Q5 -> 0
J32: 10% Planungskosten gemäß Verfahrensanleitung | N32: T€ | O32: =O30*10% -> 5506.7 | Q32: =(Q30+Q31)*10% -> 5506.7
J33: weitere 10% Planungskosten | N33: T€ | Q33: =IF(B8,Q32,0) -> 0
J34: Kosten für die Erstabnahme | N34: T€ | O34: 120 | Q34: 120
J35: Gesamtinvestitionen | N35: T€ | O35: =SUM(O30:O34) -> 60693.7 | Q35: =SUM(Q30:Q34) -> 60693.7
M36: Abschreibung
J37: Stütz-/Fundament Beton | M37: 50 Jahre | N37: 0.0389 | O37: =O35-O38 -> 50393.7 | Q37: =Q35*(B7-30)/20 -> 50375.771
J38: Stromschienenanlagen/Kabel/FBM | M38: 30 Jahre | N38: 0.051 | O38: 10300 | Q38: =Q35-Q37 -> 10317.929
J39: Aufzinsung | M39: 6 Jahre | N39: 1.0781
J40: Kapitaldienst | N40: T€ | O40: =(O37*$N$37+O38*$N$38)*$N$39 -> 2679.741456 | Q40: =(Q37*$N$37+Q38*$N$38)*$N$39 -> 2679.97534
J42: Kapitaldienst | N42: T€/Jahr | O42: 2680 | Q42: =Q40 -> 2679.97534
J43: Unterhaltungskosten | N43: T€/Jahr | O43: 680 | Q43: =Q27 -> 680.12
J44: Summe | N44: T€/Jahr | O44: =O42+O43 -> 3360 | Q44: =Q42+Q43 -> 3360.09534
J47: Teilindikator | O47: Spiekermann | P47: Original | Q47: mit WSW Handlungsoptionen
J48: Unterhaltungskosten ortsfeste Infrastruktur | N48: T€ | O48: =O43 -> 680 | Q48: =Q43 -> 680.12 | R48: von oben übernommen
J49: zusätzliche Wartungskosten für 22 Aufzüge und Rolltreppen | N49: T€ | Q49: =B13 -> 0
J50: Kosten Personal Seilbahn | N50: T€ | O50: 500 | Q50: =350*(B10)/3+150 -> 500 | R50: angepasstes Personal an den vier Einstiegsstellen
K51: Energiebedarf | N51: kWh | O51: 2200000 | P51: Koblenz bei höherer Geschwindigkeit | Q51: =2200000*1.4^(LOG(B11/890)/LOG(2)) -> 2200000 | R51: längere Strecke: 40% mehr Energie bei Verdoppelung der Strecke; s. Buch Prof. Monheim
K52: Energiekosten | N52: €/kWh | O52: 0.081818 | Q52: 0.081818 | R52: gemäß Verfahren richtig; Strompreis aber wg. EEG überproportional teurer
J53: Energiekosten Seilbahn | N53: T€ | O53: =O51*O52/1000 -> 179.9996 | Q53: =Q51*Q52/1000 -> 179.9996
J54: Versicherungskosten | N54: T€ | Q54: =B12 -> 0
J55: ÖV-Betriebskosten Seilbahn | O55: =O48+O49+O50+O53+O54 -> 1359.9996 | Q55: =Q48+Q49+Q50+Q53+Q54 -> 1360.1196
J56: Kapitaldienst Busse | N56: T€ | O56: -280 | Q56: -280
J57: Zeitabhängige Unterhaltungskosten Busse | N57: T€ | O57: -110 | Q57: -110
J58: Kosten Fahrpersonal Bussystem | N58: T€ | O58: -820 | Q58: -820
J59: laufleistungsabhängige Unterhaltungskosten Busse | N59: T€ | O59: -210 | Q59: -210
J60: Energiekosten Busse | N60: T€ | O60: -310 | Q60: -310
J61: ÖV-Kosten Busse | O61: =SUM(O56:O60) -> -1730 | Q61: =SUM(Q56:Q60) -> -1730
J62: ÖV-Gesamtkosten (ohne Kapitaldienst ortsfeste Infrastruktur) | N62: T€ | O62: =O55+O61 -> -370.0004 | Q62: =Q55+Q61 -> -369.8804
J65: Kriterien | O65: Spiekermann | Q65: mit der hälfte der Sekunden
M66: Fahrten/Werktag | O66: Eingesparte Zeit pro Fahrt | Q66: Eingesparte Zeit pro Fahrt
J67: Maßgebende ÖV-Fahrten | L67: Schüler | M67: 30240 | O67: =N70*60^2/$M$67 -> 22.26190476 | P67: Sek./Fahrt | Q67: =P70*60^2/$M$67 -> 22.26190476 | R67: Sek./Fahrt
L68: Erwachsene | M68: 142850 | O68: =N71*60^2/$M$68 -> 26.31011551 | P68: Sek./Fahrt | Q68: =P71*60^2/$M$68 -> 26.31011551 | R68: Sek./Fahrt
M69: Tage/Jahr | N69: Std./Werktag | O69: Std./Jahr | P69: Std./Werktag | Q69: Std./Jahr | R69: =R70*R71/60 -> 1231 | S69: h/Tag
L70: Schüler | M70: 250 | N70: =O70/M70 -> 187 | O70: 46750 | P70: =R69/(N71+N70)*N70 -> 187 | Q70: =P70*M70 -> 46750 | R70: =18465*(1/3+2/3*(B20/250)) -> 18465 | S70: Fahrg./Tag
L71: Erwachsene | M71: 300 | N71: =O71/M71 -> 1044 | O71: 313200 | P71: =R69/(N71+N70)*N71 -> 1044 | Q71: =P71*M71 -> 313200 | R71: =B19 -> 4 | S71: Minuten
N72: €/Stunde | O72: T€/Jahr | Q72: T€/Jahr
L73: Schüler | N73: 2 | O73: =O70*N73/1000 -> 93.5 | Q73: =Q70*N73/1000 -> 93.5
L74: Erwachsene | N74: 7.5 | O74: =O71*N74/1000 -> 2349 | Q74: =Q71*N74/1000 -> 2349
J75: Summe | K75: Reisezeitdifferenzen im ÖV (Erwachsene, Schüler) | O75: =O73+O74 -> 2442.5 | Q75: =Q73+Q74 -> 2442.5
J77: MIV-Verlagerung
J78: verlagert | M78: Fahrten/Werktag | O78: 1910 | Q78: =14000*B15 -> 1909.6 | R78: Es gibt keine Einsparungen im MIV; es wird mehr MIV induziert
J79: Personen pro Fahrzeug | L79: 1.2 | M79: Reiseweite | N79: km | O79: =10.4/L79 -> 8.666666667 | Q79: =B16 -> 8.66 | R79: was ist, wenn man nur die Reiseweiten gemäß MIV2008 erreicht
N80: Pkw-km/Werktag | O80: =O78*O79 -> 16553.33333 | Q80: =Q78*Q79 -> 16537.136
J81: Vermiedener MIV | N81: Pkw-km/Jahr | O81: =O80*300-1000 -> 4965000 | Q81: =Q80*300 -> 4961140.8
J82: ÖPNV-Verlagerung von Bus auf Auto in der Südstadt
J83: Einwohner Grifflenberg und Friedrichsberg | M83: =11658+6297 -> 17955 | N83: verlagert | O83: =O84*B17 -> 0 | P83: Pkw-km/Werktag | Q83: =O83*5.7 -> 0
J84: Wege pro Tag | K84: 3.3 | L84: ÖPNV Anteil | M84: 0.312 | N84: ÖPNV-Fahrten | O84: =M83*K84*M84 -> 18486.468 | P84: zus. MIV-km/Jahr | Q84: =Q83*300 -> 0
J85: Saldo der Pkw-Betriebskosten | L85: €/km | M85: 0.278 | N85: T€ | O85: =O81*M85/1000 -> 1380.27 | Q85: =(Q81-Q84)*M85/1000 -> 1379.197142
J87: CO2 pro km
J88: Busse | K88: 57.9 | L88: l/100km | M88: 3020 | N88: g/l Diesel | O88: 702900 | P88: km | Q88: 702900 | R88: km
O89: =O88*$K$88/100*$M$88/1000^2 -> 1229.076882 | P89: T CO2 | Q89: =Q88*$K$88/100*$M$88/1000^2 -> 1229.076882 | R89: T CO2
J90: Seilbahn | M90: 616 | N90: g | O90: 2200000 | P90: kWh | Q90: =Q51 -> 2200000 | R90: kWh | S90: Energie von oben übernommen
O91: =O90*M90/10^6 -> 1355.2 | P91: T CO2 | Q91: =Q90*M90/10^6 -> 1355.2 | R91: T CO2
J92: PKW | M92: 261 | N92: g/PKW-km | O92: =O81 -> 4965000 | P92: km | Q92: =Q81 -> 4961140.8 | R92: km | S92: eingesparte PKW-km von oben
O93: =O92*M92/10^6 -> 1295.865 | P93: T CO2 | Q93: =Q92*M92/10^6 -> 1294.857749 | R93: T CO2
L94: 231 | M94: €/T CO2 | N94: T€ | O94: =(O93+O89-O91)*$L$94/1000 -> 270.2103747 | P94: T€ | Q94: =(Q93+Q89-Q91)*$L$94/1000 -> 269.9776997
Q97: mit
J98: Teilindikator | K98: Monetär bewerteter Nutzen [T€/Jahr] | O98: Spiekermann | P98: Original | Q98: WSW-Handlungsoptionen/Reisezeiten
J99: Saldo der ÖV-Gesamtkosten (ohne Kapitaldienst für die ortsfeste Infrastruktur des ÖV) | O99: =-O62 -> 370.0004 | P99: 370 | Q99: =-Q62 -> 369.8804
J100: Reisezeitdifferenzen im ÖV (Erwachsene, Schüler) | O100: =O75 -> 2442.5 | P100: 2440 | Q100: =Q75 -> 2442.5
J101: Saldo der Pkw-Betriebskosten | O101: =O85 -> 1380.27 | P101: 1360 | Q101: =Q85 -> 1379.197142
J102: Saldo der Unfallschäden und Sachschadenkosten | O102: 370 | P102: 370 | Q102: 370 | R102: dieses Kriterium ist hier unbearbeitet
J103: Saldo der Abgasemissionen und sonstige Schadstoffe | O103: =O94 -> 270.2103747 | P103: 270 | Q103: =Q94 -> 269.9776997
J104: Summe der monetär bewerteten Einzelnutzen-Salden = Nutzen in T€/Jahr | O104: =SUM(O99:O103) -> 4832.980775 | P104: =SUM(P99:P103) -> 4810 | Q104: =SUM(Q99:Q103) -> 4831.555242
J106: Kapitaldienst für die ortsfeste Infrastruktur des ÖV im Mitfall = Kosten in T€/Jahr | O106: =O42 -> 2680 | P106: 2680 | Q106: =Q42 -> 2679.97534
J107: Differenz der Nutzen und Kosten in T€/Jahr | O107: =O104-O106 -> 2152.980775 | P107: 2130 | Q107: =Q104-Q106 -> 2151.579902
J108: Nutzen-Kosten-Verhältnis (Nutzen-Kosten-Indikator) | O108: =O104/O106 -> 1.803351035 | P108: =P104/P106 -> 1.794776119 | Q108: =Q104/Q106 -> 1.802835709
J117: Anlagenteil (Preisstand 2006) | K117: [T€]
